[Event "*** MasterClass Titled Tuesday Blitz"]
[Site "Chess.com"]
[Date "2017.10.03"]
[Round "3"]
[White "Grootneus"]
[Black "pawnwonder"]
[Result "1-0"]
[WhiteElo "2126"]
[BlackElo "1960"]
[TimeControl "180+2"]
[EndTime "13:34:01 PDT"]
[Termination "Grootneus won by resignation"]

1. e4 {[%clk 0:03:01.9]} 1... c5 {[%clk 0:02:59.9]} 2. c3 {[%clk 0:02:57.2]}
2... Nf6 {[%clk 0:02:58.8]} 3. e5 {[%clk 0:02:57.1]} 3... Nd5 {[%clk 0:02:59.3]}
4. Nf3 {[%clk 0:02:59]} 4... Nc6 {[%clk 0:02:58.4]} 5. Bc4 {[%clk 0:03:00.4]}
5... e6 {[%clk 0:02:57.4]} 6. d4 {[%clk 0:03:00.8]} 6... cxd4 {[%clk 0:02:57.6]}
7. cxd4 {[%clk 0:03:02.7]} 7... d6 {[%clk 0:02:54.8]} 8. O-O {[%clk 0:03:02.7]}
8... Be7 {[%clk 0:02:53.9]} 9. Qe2 {[%clk 0:03:00.5]} 9... O-O {[%clk
0:02:52.2]} 10. Nc3 {[%clk 0:02:57.1]} 10... Nb6 {[%clk 0:02:48.3]} 11. Bd3
{[%clk 0:02:55.9]} 11... d5 {[%clk 0:02:47.1]} 12. a3 {[%clk 0:02:53.4]} 12...
f6 {[%clk 0:02:33.3]} 13. Rd1 {[%clk 0:01:34.7]} 13... fxe5 {[%clk 0:02:18]} 14.
dxe5 {[%clk 0:01:36.6]} 14... a6 {[%clk 0:02:11.5]} 15. Qc2 {[%clk 0:01:31.8]}
15... g6 {[%clk 0:02:00.3]} 16. Bxg6 {[%clk 0:01:26.4]} 16... hxg6 {[%clk
0:01:41.4]} 17. Qxg6+ {[%clk 0:01:28.3]} 17... Kh8 {[%clk 0:01:42.2]} 18. Qh6+
{[%clk 0:01:29.7]} 18... Kg8 {[%clk 0:01:42.5]} 19. Qg6+ {[%clk 0:01:31.3]}
19... Kh8 {[%clk 0:01:43.1]} 20. Ng5 {[%clk 0:01:27.5]} 20... Bxg5 {[%clk
0:01:38]} 21. Bxg5 {[%clk 0:01:29.4]} 21... Qe8 {[%clk 0:01:38.7]} 22. Bf6+
{[%clk 0:01:18.4]} 22... Rxf6 {[%clk 0:01:36.9]} 23. Qxf6+ {[%clk 0:01:20.3]}
23... Kg8 {[%clk 0:01:34]} 24. Rd3 {[%clk 0:01:21.9]} 1-0

[Event "*** MasterClass Titled Tuesday Blitz"]
[Site "Chess.com"]
[Date "2017.10.03"]
[Round "3"]
[White "Fandorine"]
[Black "AdrianaNikolova"]
[Result "1-0"]
[WhiteElo "2644"]
[BlackElo "2397"]
[TimeControl "180+2"]
[EndTime "13:34:06 PDT"]
[Termination "Fandorine won by resignation"]

1. e4 {[%clk 0:03:01.9]} 1... c5 {[%clk 0:02:59.7]} 2. Nf3 {[%clk 0:03:02.8]}
2... Nc6 {[%clk 0:03:00.6]} 3. Bb5 {[%clk 0:03:02.7]} 3... d6 {[%clk 0:03:01.2]}
4. O-O {[%clk 0:03:02.6]} 4... Bd7 {[%clk 0:03:01.6]} 5. c3 {[%clk 0:03:03.9]}
5... Nf6 {[%clk 0:02:59.2]} 6. Re1 {[%clk 0:03:04.5]} 6... a6 {[%clk 0:03:00.1]}
7. Bf1 {[%clk 0:03:04.9]} 7... Bg4 {[%clk 0:03:01.1]} 8. d4 {[%clk 0:03:06.2]}
8... cxd4 {[%clk 0:03:00.9]} 9. cxd4 {[%clk 0:03:08.1]} 9... e6 {[%clk
0:02:46.5]} 10. d5 {[%clk 0:02:57.5]} 10... Ne5 {[%clk 0:02:31.6]} 11. Nbd2
{[%clk 0:02:50.7]} 11... Be7 {[%clk 0:02:17]} 12. Qb3 {[%clk 0:02:47.4]} 12...
Bxf3 {[%clk 0:01:41.6]} 13. Nxf3 {[%clk 0:02:40.7]} 13... Nxf3+ {[%clk
0:01:41.5]} 14. Qxf3 {[%clk 0:02:41.6]} 14... e5 {[%clk 0:01:07]} 15. Qb3 {[%clk
0:02:40]} 15... Qd7 {[%clk 0:00:58.7]} 16. f3 {[%clk 0:02:30.7]} 16... O-O
{[%clk 0:00:58.8]} 17. Be3 {[%clk 0:02:31.9]} 17... Rac8 {[%clk 0:00:59.2]} 18.
Rac1 {[%clk 0:02:31.6]} 18... Nh5 {[%clk 0:00:50.9]} 19. g3 {[%clk 0:02:05.5]}
19... g6 {[%clk 0:00:49.3]} 20. Rxc8 {[%clk 0:01:57.5]} 20... Rxc8 {[%clk
0:00:45.6]} 21. Rc1 {[%clk 0:01:58.9]} 21... Rxc1 {[%clk 0:00:45.4]} 22. Bxc1
{[%clk 0:02:00.8]} 22... Bd8 {[%clk 0:00:46.4]} 23. Be3 {[%clk 0:01:59.8]} 23...
f5 {[%clk 0:00:45.4]} 24. Bh3 {[%clk 0:01:52.3]} 24... Qf7 {[%clk 0:00:39.1]}
25. Qc2 {[%clk 0:01:53]} 25... fxe4 {[%clk 0:00:36.5]} 26. Be6 {[%clk 0:01:53]}
1-0

[Event "*** MasterClass Titled Tuesday Blitz"]
[Site "Chess.com"]
[Date "2017.10.03"]
[Round "3"]
[White "Batica1984"]
[Black "Tesla37"]
[Result "0-1"]
[WhiteElo "2620"]
[BlackElo "2676"]
[TimeControl "180+2"]
[EndTime "13:34:14 PDT"]
[Termination "Tesla37 won by resignation"]

1. e4 {[%clk 0:02:59.8]} 1... c5 {[%clk 0:02:59.6]} 2. Nc3 {[%clk 0:02:59.3]}
2... a6 {[%clk 0:02:59.4]} 3. Nge2 {[%clk 0:02:56.8]} 3... e6 {[%clk 0:02:58.3]}
4. d4 {[%clk 0:02:55.9]} 4... cxd4 {[%clk 0:02:58.7]} 5. Nxd4 {[%clk 0:02:57.8]}
5... Nc6 {[%clk 0:02:59.8]} 6. Bf4 {[%clk 0:02:54.8]} 6... d6 {[%clk 0:02:58.9]}
7. Nxc6 {[%clk 0:02:55.1]} 7... bxc6 {[%clk 0:02:59.3]} 8. Qd2 {[%clk
0:02:56.7]} 8... Nf6 {[%clk 0:02:50.1]} 9. O-O-O {[%clk 0:02:56]} 9... d5 {[%clk
0:02:51.6]} 10. g4 {[%clk 0:02:55.9]} 10... Bb4 {[%clk 0:02:51.2]} 11. Qe3
{[%clk 0:02:44.7]} 11... O-O {[%clk 0:02:48.6]} 12. e5 {[%clk 0:02:39.7]} 12...
Nd7 {[%clk 0:02:45.6]} 13. Bd3 {[%clk 0:02:13.2]} 13... Qa5 {[%clk 0:02:37.6]}
14. Qh3 {[%clk 0:02:05]} 14... g6 {[%clk 0:02:37.4]} 15. Nb1 {[%clk 0:01:40.9]}
15... Qxa2 {[%clk 0:02:32.4]} 16. c3 {[%clk 0:01:28.8]} 16... Be7 {[%clk
0:02:30.5]} 17. Qh6 {[%clk 0:01:26.9]} 17... Re8 {[%clk 0:02:11.7]} 18. Rhe1
{[%clk 0:01:27.5]} 18... Rb8 {[%clk 0:02:11.1]} 19. Re2 {[%clk 0:01:14.6]} 19...
Qa4 {[%clk 0:02:09.4]} 20. Bc2 {[%clk 0:01:11.2]} 20... Qa1 {[%clk 0:02:08.4]}
21. Rd3 {[%clk 0:01:01.8]} 21... Qxb2+ {[%clk 0:01:51.9]} 22. Kd2 {[%clk
0:01:02.7]} 22... Bf8 {[%clk 0:01:45.6]} 23. Qh4 {[%clk 0:01:02.5]} 23... Bg7
{[%clk 0:01:40]} 24. Rh3 {[%clk 0:01:02.7]} 24... Nf8 {[%clk 0:01:40.1]} 25. Bh6
{[%clk 0:00:58.3]} 25... Bxh6+ {[%clk 0:01:37.7]} 26. Qxh6 {[%clk 0:00:58.5]}
26... Qa2 {[%clk 0:01:31.1]} 27. Kc1 {[%clk 0:00:50.9]} 27... Rxb1+ {[%clk
0:01:29.5]} 0-1

[Event "*** MasterClass Titled Tuesday Blitz"]
[Site "Chess.com"]
[Date "2017.10.03"]
[Round "3"]
[White "Dhaydon19"]
[Black "JSPrepz"]
[Result "0-1"]
[WhiteElo "2476"]
[BlackElo "2538"]
[TimeControl "180+2"]
[EndTime "13:34:23 PDT"]
[Termination "JSPrepz won by checkmate"]

1. d4 {[%clk 0:02:36.7]} 1... Nf6 {[%clk 0:02:59.7]} 2. c4 {[%clk 0:02:37.4]}
2... c5 {[%clk 0:03:00.8]} 3. d5 {[%clk 0:02:38]} 3... b5 {[%clk 0:03:01.2]} 4.
cxb5 {[%clk 0:02:38.4]} 4... a6 {[%clk 0:03:02.5]} 5. b6 {[%clk 0:02:38.6]} 5...
e6 {[%clk 0:03:02.2]} 6. Nc3 {[%clk 0:02:37.5]} 6... exd5 {[%clk 0:03:03.4]} 7.
Nxd5 {[%clk 0:02:37.5]} 7... Nxd5 {[%clk 0:03:05.3]} 8. Qxd5 {[%clk 0:02:37.9]}
8... Nc6 {[%clk 0:03:06.9]} 9. Nf3 {[%clk 0:02:34.8]} 9... Rb8 {[%clk 0:03:08]}
10. e3 {[%clk 0:02:34.1]} 10... Be7 {[%clk 0:03:07.3]} 11. Bc4 {[%clk
0:02:33.2]} 11... O-O {[%clk 0:03:08.2]} 12. O-O {[%clk 0:02:26.1]} 12... Qxb6
{[%clk 0:03:08]} 13. b3 {[%clk 0:02:20.2]} 13... d6 {[%clk 0:03:06.7]} 14. Bb2
{[%clk 0:02:18.4]} 14... Be6 {[%clk 0:03:06.6]} 15. Qd3 {[%clk 0:02:16]} 15...
d5 {[%clk 0:03:02.2]} 16. Qe2 {[%clk 0:02:15.7]} 16... dxc4 {[%clk 0:03:01.4]}
17. Ne5 {[%clk 0:02:00.7]} 17... Nxe5 {[%clk 0:02:45.5]} 18. Bxe5 {[%clk
0:01:57.8]} 18... Bd6 {[%clk 0:02:46.5]} 19. Bb2 {[%clk 0:01:57.4]} 19... cxb3
{[%clk 0:02:44.6]} 20. axb3 {[%clk 0:01:58.1]} 20... Qxb3 {[%clk 0:02:45.4]} 21.
Rfb1 {[%clk 0:01:52.5]} 21... Be5 {[%clk 0:02:36.9]} 22. Bxe5 {[%clk 0:00:11.9]}
22... Qxb1+ {[%clk 0:02:37.6]} 23. Qf1 {[%clk 0:00:09.9]} 23... Qxf1+ {[%clk
0:02:37.2]} 24. Rxf1 {[%clk 0:00:10.1]} 24... Rb6 {[%clk 0:02:36]} 25. h3 {[%clk
0:00:10.2]} 25... c4 {[%clk 0:02:36.7]} 26. Kh2 {[%clk 0:00:11]} 26... Rc8
{[%clk 0:02:36.5]} 27. Bd4 {[%clk 0:00:11.6]} 27... Rbc6 {[%clk 0:02:36]} 28.
Ra1 {[%clk 0:00:12.8]} 28... c3 {[%clk 0:02:37]} 29. Rc1 {[%clk 0:00:14.6]}
29... c2 {[%clk 0:02:38]} 30. f3 {[%clk 0:00:16.4]} 30... Rb8 {[%clk 0:02:38.7]}
31. Kg3 {[%clk 0:00:18.2]} 31... Rb1 {[%clk 0:02:39.4]} 32. Rxc2 {[%clk
0:00:19.2]} 32... Rxc2 {[%clk 0:02:39.3]} 33. Kf4 {[%clk 0:00:20.5]} 33... a5
{[%clk 0:02:40.8]} 34. g4 {[%clk 0:00:21]} 34... a4 {[%clk 0:02:42.7]} 35. h4
{[%clk 0:00:22.6]} 35... a3 {[%clk 0:02:43.9]} 36. h5 {[%clk 0:00:23.6]} 36...
a2 {[%clk 0:02:45.8]} 37. h6 {[%clk 0:00:24]} 37... Rb4 {[%clk 0:02:47.4]} 38.
hxg7 {[%clk 0:00:24.7]} 38... Rxd4+ {[%clk 0:02:48]} 39. exd4 {[%clk 0:00:25.5]}
39... a1=Q {[%clk 0:02:49.9]} 40. Ke5 {[%clk 0:00:26.6]} 40... Rc5+ {[%clk
0:02:48.6]} 41. Kf6 {[%clk 0:00:26.3]} 41... Qxd4+ {[%clk 0:02:49.7]} 42. Ke7
{[%clk 0:00:26.2]} 42... Rc7+ {[%clk 0:02:49.4]} 43. Ke8 {[%clk 0:00:26.9]}
43... Qd7# {[%clk 0:02:50.7]} 0-1

[Event "*** MasterClass Titled Tuesday Blitz"]
[Site "Chess.com"]
[Date "2017.10.03"]
[Round "3"]
[White "Oneofmyturns"]
[Black "sergiochess83"]
[Result "0-1"]
[WhiteElo "2574"]
[BlackElo "2720"]
[TimeControl "180+2"]
[EndTime "13:34:58 PDT"]
[Termination "sergiochess83 won by resignation"]

1. d4 {[%clk 0:03:01.1]} 1... Nf6 {[%clk 0:03:00.3]} 2. c4 {[%clk 0:03:02.4]}
2... e6 {[%clk 0:03:01.2]} 3. Nc3 {[%clk 0:03:03.8]} 3... Bb4 {[%clk 0:03:00.7]}
4. Qc2 {[%clk 0:03:05.4]} 4... O-O {[%clk 0:02:59.1]} 5. Nf3 {[%clk 0:03:05.7]}
5... b6 {[%clk 0:02:59.5]} 6. Bg5 {[%clk 0:02:58.4]} 6... Bb7 {[%clk 0:02:59.3]}
7. a3 {[%clk 0:02:45.5]} 7... Bxc3+ {[%clk 0:02:57.5]} 8. Qxc3 {[%clk
0:02:47.4]} 8... h6 {[%clk 0:02:58.7]} 9. Bf4 {[%clk 0:02:45.1]} 9... d6 {[%clk
0:02:56.9]} 10. e3 {[%clk 0:02:42]} 10... Nbd7 {[%clk 0:02:56.3]} 11. Rd1 {[%clk
0:02:29.7]} 11... Ne4 {[%clk 0:02:41.7]} 12. Qc2 {[%clk 0:02:29.1]} 12... g5
{[%clk 0:02:42.7]} 13. Bg3 {[%clk 0:02:29.1]} 13... f5 {[%clk 0:02:43.8]} 14.
Bd3 {[%clk 0:02:25.7]} 14... Ndf6 {[%clk 0:02:42.2]} 15. O-O {[%clk 0:02:15.3]}
15... Qe8 {[%clk 0:02:39.7]} 16. Bxe4 {[%clk 0:01:59.9]} 16... Bxe4 {[%clk
0:02:33.5]} 17. Qe2 {[%clk 0:01:58.2]} 17... Qh5 {[%clk 0:02:30.7]} 18. Rfe1
{[%clk 0:01:53.7]} 18... Bxf3 {[%clk 0:02:31.3]} 19. gxf3 {[%clk 0:01:44.8]}
19... Rae8 {[%clk 0:02:18.2]} 20. f4 {[%clk 0:01:08.8]} 20... Qxe2 {[%clk
0:02:00.4]} 21. Rxe2 {[%clk 0:01:10.7]} 21... g4 {[%clk 0:01:43.5]} 22. f3
{[%clk 0:01:02.1]} 22... gxf3 {[%clk 0:01:43.7]} 23. Rf2 {[%clk 0:01:03.1]}
23... Ne4 {[%clk 0:01:44.3]} 24. Rxf3 {[%clk 0:01:04]} 24... Kf7 {[%clk
0:01:46.2]} 25. Kg2 {[%clk 0:00:35.3]} 25... Rg8 {[%clk 0:01:47.2]} 26. Kh3
{[%clk 0:00:36.7]} 26... Rg4 {[%clk 0:01:46.8]} 27. d5 {[%clk 0:00:37.4]} 27...
Reg8 {[%clk 0:01:45.3]} 28. b4 {[%clk 0:00:36.4]} 28... R4g6 {[%clk 0:01:22.5]}
29. dxe6+ {[%clk 0:00:35.2]} 29... Kxe6 {[%clk 0:01:22.2]} 30. Rff1 {[%clk
0:00:26.8]} 30... Nxg3 {[%clk 0:01:20.3]} 0-1

[Event "*** MasterClass Titled Tuesday Blitz"]
[Site "Chess.com"]
[Date "2017.10.03"]
[Round "3"]
[White "Margency"]
[Black "severomorskij"]
[Result "0-1"]
[WhiteElo "2530"]
[BlackElo "2658"]
[TimeControl "180+2"]
[EndTime "13:35:10 PDT"]
[Termination "severomorskij won by resignation"]

1. e4 {[%clk 0:03:01.9]} 1... c5 {[%clk 0:03:00.2]} 2. Nf3 {[%clk 0:03:02.4]}
2... Nc6 {[%clk 0:03:01.6]} 3. d4 {[%clk 0:03:03.7]} 3... cxd4 {[%clk
0:03:01.9]} 4. Nxd4 {[%clk 0:03:05.6]} 4... Nf6 {[%clk 0:03:03.3]} 5. Nc3 {[%clk
0:03:07.1]} 5... e5 {[%clk 0:03:04.3]} 6. Ndb5 {[%clk 0:03:08.7]} 6... d6 {[%clk
0:03:05.5]} 7. Bg5 {[%clk 0:03:10]} 7... a6 {[%clk 0:03:06.5]} 8. Na3 {[%clk
0:03:11.3]} 8... b5 {[%clk 0:03:08]} 9. Bxf6 {[%clk 0:03:12.9]} 9... gxf6 {[%clk
0:03:08.6]} 10. Nd5 {[%clk 0:03:13.3]} 10... f5 {[%clk 0:03:09.3]} 11. exf5
{[%clk 0:03:13.8]} 11... Bxf5 {[%clk 0:03:07.3]} 12. c3 {[%clk 0:03:15.2]} 12...
Bg7 {[%clk 0:03:06.1]} 13. Nc2 {[%clk 0:03:16.4]} 13... O-O {[%clk 0:03:06.8]}
14. Nce3 {[%clk 0:03:17.6]} 14... Bg6 {[%clk 0:03:07.7]} 15. h4 {[%clk
0:03:17.8]} 15... h6 {[%clk 0:03:08]} 16. Bd3 {[%clk 0:03:13.9]} 16... f5 {[%clk
0:02:55.9]} 17. g3 {[%clk 0:02:58]} 17... Kh8 {[%clk 0:02:52.6]} 18. a4 {[%clk
0:02:57.3]} 18... b4 {[%clk 0:02:52.4]} 19. O-O {[%clk 0:02:51.1]} 19... bxc3
{[%clk 0:02:51]} 20. bxc3 {[%clk 0:02:51.7]} 20... Ra7 {[%clk 0:02:31.2]} 21.
Rb1 {[%clk 0:02:49.5]} 21... Ne7 {[%clk 0:02:00.2]} 22. Qc2 {[%clk 0:02:19.6]}
22... e4 {[%clk 0:01:38.1]} 23. Be2 {[%clk 0:02:11.4]} 23... Nxd5 {[%clk
0:01:37.4]} 24. Nxd5 {[%clk 0:02:11.9]} 24... Be5 {[%clk 0:01:36.2]} 25. f4
{[%clk 0:02:02.9]} 25... exf3 {[%clk 0:01:33.8]} 26. Rxf3 {[%clk 0:02:02.6]}
26... Rg7 {[%clk 0:01:32.2]} 27. Kf2 {[%clk 0:01:55.7]} 27... f4 {[%clk
0:01:27.2]} 28. Bd3 {[%clk 0:01:50.7]} 28... fxg3+ {[%clk 0:01:26]} 29. Kg2
{[%clk 0:01:47.7]} 29... Rxf3 {[%clk 0:01:25.5]} 30. Kxf3 {[%clk 0:01:47.1]}
30... Qf8+ {[%clk 0:00:59.3]} 31. Ke3 {[%clk 0:01:08.9]} 31... Bxd3 {[%clk
0:00:58.5]} 32. Kxd3 {[%clk 0:01:00.8]} 32... Qf5+ {[%clk 0:00:53.7]} 33. Kd2
{[%clk 0:01:01.4]} 33... Qxc2+ {[%clk 0:00:54]} 34. Kxc2 {[%clk 0:01:02.3]}
34... g2 {[%clk 0:00:54.9]} 0-1

[Event "*** MasterClass Titled Tuesday Blitz"]
[Site "Chess.com"]
[Date "2017.10.03"]
[Round "3"]
[White "NateSolon"]
[Black "PrinceMurad09"]
[Result "1-0"]
[WhiteElo "2321"]
[BlackElo "2315"]
[TimeControl "180+2"]
[EndTime "13:35:13 PDT"]
[Termination "NateSolon won by resignation"]

1. d4 {[%clk 0:03:01.9]} 1... Nf6 {[%clk 0:03:00.8]} 2. Bf4 {[%clk 0:03:02.3]}
2... d6 {[%clk 0:03:01.3]} 3. Nc3 {[%clk 0:03:02.7]} 3... Nbd7 {[%clk
0:03:02.8]} 4. Nf3 {[%clk 0:03:03.1]} 4... g6 {[%clk 0:03:01.3]} 5. e4 {[%clk
0:03:03.7]} 5... Bg7 {[%clk 0:03:02.6]} 6. Qd2 {[%clk 0:03:04.9]} 6... h5 {[%clk
0:03:00.3]} 7. O-O-O {[%clk 0:03:05.1]} 7... c6 {[%clk 0:03:01.4]} 8. e5 {[%clk
0:03:03.6]} 8... dxe5 {[%clk 0:02:47.3]} 9. dxe5 {[%clk 0:03:05.5]} 9... Nh7
{[%clk 0:02:42.6]} 10. e6 {[%clk 0:02:57.2]} 10... fxe6 {[%clk 0:02:42.3]} 11.
Bd3 {[%clk 0:02:57.7]} 11... Nhf8 {[%clk 0:02:31.9]} 12. Nh4 {[%clk 0:02:45.1]}
12... Kf7 {[%clk 0:02:21.9]} 13. Ne4 {[%clk 0:02:39.2]} 13... Qb6 {[%clk
0:02:21.2]} 14. Ng5+ {[%clk 0:02:34.1]} 14... Kg8 {[%clk 0:02:22]} 15. c3 {[%clk
0:02:33.5]} 15... Qa5 {[%clk 0:02:15.8]} 16. Kb1 {[%clk 0:02:30.6]} 16... e5
{[%clk 0:01:44.5]} 17. Bc4+ {[%clk 0:02:23.8]} 17... e6 {[%clk 0:01:45.3]} 18.
Nxe6 {[%clk 0:02:23.2]} 18... Nxe6 {[%clk 0:01:45.3]} 19. Bxe6+ {[%clk
0:02:25.1]} 19... Kh7 {[%clk 0:01:46.3]} 20. Nxg6 {[%clk 0:01:59.7]} 20... exf4
{[%clk 0:01:18.4]} 21. Qd3 {[%clk 0:01:44.4]} 21... Qg5 {[%clk 0:00:28.3]} 22.
Nxh8+ {[%clk 0:01:37.2]} 22... Kxh8 {[%clk 0:00:30.2]} 23. Bxd7 {[%clk
0:01:38.2]} 23... Bxd7 {[%clk 0:00:24.7]} 24. Qxd7 {[%clk 0:01:40.1]} 24... Qxg2
{[%clk 0:00:20.6]} 25. Rhg1 {[%clk 0:01:32.2]} 25... Qe4+ {[%clk 0:00:22.5]} 26.
Ka1 {[%clk 0:01:33.2]} 26... Rg8 {[%clk 0:00:21.3]} 27. Qf7 {[%clk 0:01:28.9]}
27... Qf3 {[%clk 0:00:18.9]} 28. Rd7 {[%clk 0:01:22.5]} 28... a5 {[%clk
0:00:13.4]} 29. a3 {[%clk 0:01:19.5]} 1-0

[Event "*** MasterClass Titled Tuesday Blitz"]
[Site "Chess.com"]
[Date "2017.10.03"]
[Round "3"]
[White "chessdude"]
[Black "chito89"]
[Result "0-1"]
[WhiteElo "2446"]
[BlackElo "2581"]
[TimeControl "180+2"]
[EndTime "13:35:20 PDT"]
[Termination "chito89 won by resignation"]

1. e4 {[%clk 0:03:01.9]} 1... e5 {[%clk 0:02:55.5]} 2. Nf3 {[%clk 0:03:00.8]}
2... Nc6 {[%clk 0:02:54.2]} 3. Bc4 {[%clk 0:03:01.1]} 3... Bc5 {[%clk
0:02:49.7]} 4. O-O {[%clk 0:03:01.2]} 4... Nf6 {[%clk 0:02:50.2]} 5. d3 {[%clk
0:03:02.3]} 5... d6 {[%clk 0:02:50.6]} 6. c3 {[%clk 0:03:03.2]} 6... a6 {[%clk
0:02:47.3]} 7. a4 {[%clk 0:03:03.1]} 7... Ba7 {[%clk 0:02:47.4]} 8. h3 {[%clk
0:03:01.6]} 8... h6 {[%clk 0:02:47.1]} 9. Re1 {[%clk 0:03:01.7]} 9... g5 {[%clk
0:02:45.9]} 10. Be3 {[%clk 0:02:30]} 10... Bxe3 {[%clk 0:02:37.5]} 11. Rxe3
{[%clk 0:02:23.8]} 11... g4 {[%clk 0:02:38.8]} 12. hxg4 {[%clk 0:02:24.1]} 12...
Nxg4 {[%clk 0:02:38.2]} 13. Re1 {[%clk 0:02:25.5]} 13... Rg8 {[%clk 0:02:32.2]}
14. Nbd2 {[%clk 0:02:26.2]} 14... Qf6 {[%clk 0:02:23.1]} 15. b4 {[%clk
0:02:14.9]} 15... Ne7 {[%clk 0:02:19.6]} 16. d4 {[%clk 0:02:07]} 16... Ng6
{[%clk 0:02:18.8]} 17. dxe5 {[%clk 0:02:08]} 17... dxe5 {[%clk 0:01:58.1]} 18.
Bf1 {[%clk 0:01:57.6]} 18... Be6 {[%clk 0:01:58.3]} 19. b5 {[%clk 0:01:50.2]}
19... Nf4 {[%clk 0:01:33.8]} 20. g3 {[%clk 0:01:20.7]} 20... h5 {[%clk
0:01:33.4]} 21. bxa6 {[%clk 0:01:12.3]} 21... bxa6 {[%clk 0:01:34.9]} 22. Bg2
{[%clk 0:00:53.4]} 22... Nxg2 {[%clk 0:01:14.8]} 23. Kxg2 {[%clk 0:00:54.2]}
23... h4 {[%clk 0:01:16.4]} 24. Nf1 {[%clk 0:00:47.7]} 24... h3+ {[%clk
0:00:56]} 25. Kg1 {[%clk 0:00:48.3]} 25... Rd8 {[%clk 0:00:57.1]} 26. Qe2 {[%clk
0:00:34.9]} 26... Bc4 {[%clk 0:00:58.1]} 27. Qxc4 {[%clk 0:00:33.3]} 27... Qxf3
{[%clk 0:00:59]} 28. Qc6+ {[%clk 0:00:20]} 28... Kf8 {[%clk 0:00:59.8]} 29. Ne3
{[%clk 0:00:19.7]} 29... Qxf2+ {[%clk 0:01:00]} 0-1

[Event "*** MasterClass Titled Tuesday Blitz"]
[Site "Chess.com"]
[Date "2017.10.03"]
[Round "3"]
[White "tigra"]
[Black "Muisback26"]
[Result "0-1"]
[WhiteElo "2625"]
[BlackElo "2653"]
[TimeControl "180+2"]
[EndTime "13:35:25 PDT"]
[Termination "Muisback26 won by resignation"]

1. e4 {[%clk 0:03:01.9]} 1... c5 {[%clk 0:02:59.4]} 2. Nf3 {[%clk 0:03:02.9]}
2... d6 {[%clk 0:03:00.2]} 3. d4 {[%clk 0:03:04.3]} 3... cxd4 {[%clk 0:03:00.9]}
4. Nxd4 {[%clk 0:03:06]} 4... Nf6 {[%clk 0:03:01.8]} 5. Nc3 {[%clk 0:03:07.6]}
5... g6 {[%clk 0:03:03.2]} 6. Be3 {[%clk 0:03:08.2]} 6... Bg7 {[%clk 0:03:04.7]}
7. f3 {[%clk 0:03:09.8]} 7... Nc6 {[%clk 0:03:05.8]} 8. Qd2 {[%clk 0:03:11.3]}
8... O-O {[%clk 0:03:07]} 9. O-O-O {[%clk 0:03:12.9]} 9... d5 {[%clk 0:03:07]}
10. Kb1 {[%clk 0:03:08.9]} 10... Rb8 {[%clk 0:03:04.6]} 11. g3 {[%clk
0:02:57.4]} 11... e5 {[%clk 0:02:41.7]} 12. Nxc6 {[%clk 0:02:58.1]} 12... bxc6
{[%clk 0:02:43.6]} 13. exd5 {[%clk 0:02:58.3]} 13... cxd5 {[%clk 0:02:39]} 14.
Nxd5 {[%clk 0:02:58.8]} 14... Be6 {[%clk 0:02:39.9]} 15. Nxf6+ {[%clk
0:02:56.9]} 15... Qxf6 {[%clk 0:02:40.5]} 16. Bg5 {[%clk 0:02:17.9]} 16... Qxf3
{[%clk 0:02:36.8]} 17. Bg2 {[%clk 0:02:18.9]} 17... Qg4 {[%clk 0:02:37.3]} 18.
b3 {[%clk 0:01:16.3]} 18... Rfc8 {[%clk 0:01:53.4]} 19. Rhf1 {[%clk 0:00:47.4]}
19... Bf5 {[%clk 0:01:41.2]} 20. Rc1 {[%clk 0:00:46.7]} 20... Qa4 {[%clk
0:01:33.1]} 21. Bd5 {[%clk 0:00:41.8]} 21... Qa3 {[%clk 0:01:22.9]} 22. Bxf7+
{[%clk 0:00:39.3]} 22... Kh8 {[%clk 0:01:19.8]} 23. g4 {[%clk 0:00:16.6]} 23...
e4 {[%clk 0:01:13]} 24. c3 {[%clk 0:00:04.3]} 24... e3+ {[%clk 0:01:13.3]} 25.
gxf5 {[%clk 0:00:04.5]} 25... exd2 {[%clk 0:01:13.6]} 26. Bxd2 {[%clk
0:00:06.4]} 26... Qd6 {[%clk 0:01:09.8]} 27. Rcd1 {[%clk 0:00:06.7]} 27... Qd3+
{[%clk 0:01:09.5]} 28. Kb2 {[%clk 0:00:05.3]} 28... Rxc3 {[%clk 0:01:10.1]} 0-1

[Event "*** MasterClass Titled Tuesday Blitz"]
[Site "Chess.com"]
[Date "2017.10.03"]
[Round "3"]
[White "1stSecond"]
[Black "GrigorGrigorov"]
[Result "0-1"]
[WhiteElo "2614"]
[BlackElo "2719"]
[TimeControl "180+2"]
[EndTime "13:35:34 PDT"]
[Termination "GrigorGrigorov won by resignation"]

1. d4 {[%clk 0:03:01.9]} 1... Nf6 {[%clk 0:02:58.4]} 2. c4 {[%clk 0:02:57.5]}
2... e6 {[%clk 0:02:58.6]} 3. Nf3 {[%clk 0:02:57.9]} 3... b6 {[%clk 0:02:58.9]}
4. g3 {[%clk 0:02:58.3]} 4... Bb7 {[%clk 0:02:59.3]} 5. Bg2 {[%clk 0:02:59.1]}
5... Be7 {[%clk 0:02:59.5]} 6. O-O {[%clk 0:03:00]} 6... O-O {[%clk 0:02:59.9]}
7. Nc3 {[%clk 0:03:01.5]} 7... Ne4 {[%clk 0:03:00.3]} 8. Bd2 {[%clk 0:03:02.8]}
8... Bf6 {[%clk 0:03:00.5]} 9. Be1 {[%clk 0:03:01]} 9... d5 {[%clk 0:02:59.4]}
10. Ne5 {[%clk 0:02:57.9]} 10... c5 {[%clk 0:02:55]} 11. Nxe4 {[%clk 0:02:41.4]}
11... dxe4 {[%clk 0:02:54.1]} 12. Bc3 {[%clk 0:02:42]} 12... Qc7 {[%clk
0:02:39.7]} 13. e3 {[%clk 0:02:05.6]} 13... Rd8 {[%clk 0:02:18.5]} 14. Qg4
{[%clk 0:02:04.2]} 14... cxd4 {[%clk 0:02:12.4]} 15. exd4 {[%clk 0:02:06.1]}
15... Bxe5 {[%clk 0:02:11.8]} 16. dxe5 {[%clk 0:02:08]} 16... Qxc4 {[%clk
0:02:12.3]} 17. Rfe1 {[%clk 0:02:09]} 17... Na6 {[%clk 0:02:09.3]} 18. Bxe4
{[%clk 0:02:08.5]} 18... Bxe4 {[%clk 0:02:09.1]} 19. Rxe4 {[%clk 0:02:10.4]}
19... Qd3 {[%clk 0:02:05.8]} 20. Re3 {[%clk 0:01:39.8]} 20... Qd5 {[%clk
0:02:02.2]} 21. h4 {[%clk 0:01:34.2]} 21... Nc5 {[%clk 0:01:59.7]} 22. h5 {[%clk
0:01:35]} 22... h6 {[%clk 0:01:59.1]} 23. b3 {[%clk 0:01:00.3]} 23... Rd7 {[%clk
0:01:58.1]} 24. Rae1 {[%clk 0:00:57.7]} 24... Rad8 {[%clk 0:01:56.4]} 25. Rf3
{[%clk 0:00:57.9]} 25... a5 {[%clk 0:01:37.9]} 26. Kh2 {[%clk 0:00:55.7]} 26...
Qc6 {[%clk 0:01:16.6]} 27. b4 {[%clk 0:00:17.4]} 27... Nd3 {[%clk 0:01:12.8]}
28. Rxd3 {[%clk 0:00:03.4]} 28... Rxd3 {[%clk 0:01:12.5]} 29. Ba1 {[%clk
0:00:04.4]} 29... Rd2 {[%clk 0:01:09.2]} 30. Kg1 {[%clk 0:00:05.3]} 30... Qc2
{[%clk 0:01:04.4]} 31. Qf4 {[%clk 0:00:04.5]} 31... Rd1 {[%clk 0:01:04.3]} 0-1